Cogmind - Beta 16 @@@ ROGUE MODE // 2025.10.28 @ 16:00:54 Player: celerysam Result: Destroyed by OL-U85(R) with Subdweller Machine Gun Performance ------------- Evolutions (0) 0 Regions Visited (2) 400 Robots Destroyed (32) 160 Value Destroyed (922) 922 Prototype IDs (12) 240 Alien Tech Used (0) 0 Bonus (0) 0 TOTAL SCORE: 1722 Bonus ------- None Cogmind --------- Core Integrity 0/250 Matter 292/300 Energy 250/250 System Corruption 0% Temperature Cool (0) Movement Rolling (120) Ox2 Location -10/Subcaves Parts ------- > --- POWER (1) -------- Ion Engine > --- PROPULSION (2) --- Wheel Compact Wheel > --- UTILITY (2) ------ High-capacity Storage Unit Makeshift Light Armor Plating > --- WEAPON (2) ------- Barrage Gun Light Cannon > --- INVENTORY (20) --- Light Ion Engine Subdweller Power Source Wheel Subdweller Monowheel Makeshift Flight Unit Large Storage Unit Structural Scanner Structural Scanner Sensor Array Signal Interpreter Makeshift Thermal Plating Rainbow Chip Particle Gun Makeshift Laser Grenade Launcher Subdweller Shrapnel Launcher Peak State ------------ > --- POWER ------------ Ion Engine > --- PROPULSION ------- Wheel Compact Wheel > --- UTILITY ---------- High-capacity Storage Unit Makeshift Light Armor Plating > --- WEAPON ----------- Barrage Gun Light Cannon > --- INVENTORY -------- Light Ion Engine Subdweller Power Source Wheel Subdweller Monowheel Makeshift Flight Unit Large Storage Unit Structural Scanner Structural Scanner Sensor Array Signal Interpreter Makeshift Thermal Plating Rainbow Chip Particle Gun Makeshift Laser Grenade Launcher Subdweller Shrapnel Launcher [Rating: 16] Favorites ----------- Power Ion Engine Engine Ion Engine Propulsion Wheel Treads Light Treads Leg Aluminum Leg Wheel Wheel Utility High-capacity Storage Unit Device Structural Scanner Storage High-capacity Storage Unit Protection Makeshift Light Armor Plating Weapon Light Cannon Energy Gun Small Laser Energy Cannon Particle Cannon Ballistic Gun Assault Rifle Ballistic Cannon Light Cannon Launcher Grenade Launcher Special Weapon Mining Laser Build | -11 -10 -10 ------- Run | Yrd Mat Sub Slots Evolved . | . . . Power . | . . . Propulsion . | . . . Utility . | . . . Weapon . | . . . Parts Attached 39 | 6 21 12 Power 3 | 1 1 1 Engine 3 | 1 1 1 Core . | . . . Reactor . | . . . Propulsion 14 | 2 7 5 Treads 2 | . 2 . Leg 4 | 2 2 . Wheel 8 | . 3 5 Hover . | . . . Flight . | . . . Utility 10 | 1 8 1 Device 4 | . 4 . Storage 5 | 1 4 . Processor . | . . . Hackware . | . . . Protection 1 | . . 1 Artifact . | . . . Weapon 12 | 2 5 5 Energy Gun 2 | 1 1 . Energy Cannon 2 | . 2 . Ballistic Gun 2 | 1 . 1 Ballistic Cannon 4 | . 1 3 Launcher 1 | . . 1 Special Weapon 1 | . 1 . Impact Weapon . | . . . Slashing Weapon . | . . . Piercing Weapon . | . . . Special Melee Weapon . | . . . Unidentified Prototypes . | . . . Parts Lost 9 | . 2 7 Power 2 | . 1 1 Propulsion 3 | . 1 2 Utility . | . . . Weapon 4 | . . 4 Highest Loss Streak 4 | . 1 4 To Critical Strikes . | . . . Average Backups 16 | 5 13 18 Power 1 | . 1 2 Propulsion 4 | 3 4 4 Utility 4 | . 3 6 Weapon 4 | . 3 5 Tool/Special . | . . . Unused Backups 13 | . 1 12 Power 2 | . . 2 Propulsion 3 | . . 3 Utility 5 | . . 5 Weapon 3 | . 1 2 Tool/Special . | . . . Average Slot Usage (%) 98 | . 96 98 Engine 13 | . 13 13 Treads 3 | . 8 . Leg 2 | . 5 . Wheel 21 | . 11 27 Device 12 | . 13 10 Storage 14 | . 14 14 Protection 1 | . . 3 Energy Gun 1 | . 2 . Energy Cannon 4 | . 10 . Ballistic Gun 2 | . 3 1 Ballistic Cannon 14 | . 10 16 Special Weapon 5 | . . 8 Peak Build Rating 16 | 6 11 16 Average Rating 10 | 4 9 11 On Entrance 5 | . 6 9 Avg Prop Armor Cover (%) . | . . . Naked Turns . | . . . Heaviest Build 93 | 11 93 55 Greatest Support 40 | 20 40 40 Greatest Overweight (x) 17 | . 17 3 Average Overweight (x) 1 | . 1 1 Largest Inventory Capacity 25 | 8 25 20 Average Capacity 18 | 6 16 20 Most Carried 20 | 6 20 20 Average Carried 16 | 5 13 18 Final Capacity 20 | 8 20 20 Final Carried 20 | 6 20 16 Class Distribution -------------------- 100% | Mutant Dominant Class ---------------- Mutant | -10/Materials Mutant | -10/Subcaves Resources | -11 -10 -10 ----------- Run | Yrd Mat Sub Matter Collected 1300 | 205 435 660 Remotely . | . . . Salvage Created 986 | . 584 402 Parts 51 | . 26 25 Haulers Intercepted 2 | . 2 . Recyclers Shooed . | . . . Parts Field Recycled . | . . . Retrieved Matter . | . . . Parts Self-Destructed 16 | . . 16 Prevented . | . . . Parts Restored . | . . . Kills | -11 -10 -10 ------- Run | Yrd Mat Sub Combat Hostiles Destroyed 29 | . 12 17 Guns 7 | . 5 2 Cannons 19 | . 7 12 AOE 3 | . . 3 Classes Destroyed 6 | . 4 2 Hauler 2 | . 2 . Watcher 1 | . 1 . Swarmer 8 | . 2 6 Grunt 12 | . 10 2 Sentry 1 | . . 1 Subdweller 8 | . . 8 Best Kill Streak 3 | . 3 3 Combat Bots Only 3 | . 2 3 Max Kills in Single Turn 2 | . 1 2 Gunslinging . | . . . Exploded 1 | . . 1 Melee . | . . . Uniques/NPCs Destroyed . | . . . Combat | -11 -10 -10 -------- Run | Yrd Mat Sub Hostile Shots Fired 160 | . 92 68 Missed 54 | . 33 21 Hits 106 | . 59 47 Projectile 106 | . 59 47 Critical Strikes 2 | . . 2 Damage Taken 1637 | . 737 900 Core 265 | . 109 156 Absorbed by Shields . | . . . Core Remaining (%) 100 | 100 . . Volleys Fired 144 | . 57 87 Largest 2 | . 2 2 Hottest 100 | . 100 100 Shots Fired 229 | . 113 116 Gun 61 | . 53 8 Cannon 126 | . 59 67 Launcher 7 | . . 7 Special 35 | . 1 34 Kinetic 131 | . 56 75 Thermal 91 | . 57 34 Explosive 7 | . . 7 Electromagnetic . | . . . Robot Hit Streak 10 | . 10 9 Robot Miss Streak 5 | . 5 3 Penetration Max . | . . . Secondary Targets 1 | . 1 . Max Gunslinging Chain 1 | . 1 . Shots Hit Robots 111 | . 64 47 Core Hits 49 | . 22 27 Critical Kills . | . . . Critical Parts Destroyed . | . . . Critical Strikes 2 | . 1 1 Blast 2 | . 1 1 Melee Attacks . | . . . Impact . | . . . Slashing . | . . . Piercing . | . . . Sneak Attacks . | . . . Combat Hostiles . | . . . Follow-up Attacks . | . . . Damage Inflicted 2171 | . 1040 1131 Guns 514 | . 453 61 Cannons 1190 | . 587 603 Explosions 467 | . . 467 Melee . | . . . Ramming . | . . . Kinetic 1162 | . 498 664 Thermal 542 | . 542 . Explosive 467 | . . 467 Electromagnetic . | . . . Impact . | . . . Slashing . | . . . Piercing . | . . . Highest Corruption . | . . . Average Corruption . | . . . Corruption Purged . | . . . Corruption Blocked . | . . . Overload Shots . | . . . Overflow Damage 26 | . 6 20 Projectiles 6 | . 6 . Explosions 20 | . . 20 Melee . | . . . Knockbacks 8 | . 3 5 Impact . | . . . Kinetic 8 | . 3 5 Secondary . | . . . Self-Inflicted Damage . | . . . Shots . | . . . Rammed . | . . . Targets Rammed . | . . . Kicked . | . . . Crushed . | . . . Highest Temperature 264 | . 124 264 Average Temperature 46 | . 36 160 Received Heat Transfer 831 | . 378 453 Siege Activations . | . . . Martial Activations . | . . . Shielding Activations . | . . . Robots Disrupted . | . . . Combat Hostiles . | . . . Robots Corrupted . | . . . Combat Hostiles . | . . . Parts Fried . | . . . Impact Corruptions . | . . . Robots Melted . | . . . Combat Hostiles . | . . . Parts Melted . | . . . Heat Transferred 1115 | . 1115 . Parts Sabotaged . | . . . Parts Stolen . | . . . Parts Stripped . | . . . Power Chain Reactions . | . . . Alert | -11 -10 -10 ------- Run | Yrd Mat Sub Maximum Alert Level . | . . . Low Security (%) 100 | 100 100 . Level 1 . | . . . Level 2 . | . . . Level 3 . | . . . Level 4 . | . . . Level 5 . | . . . High Security . | . . . Max Security . | . . . Peak Influence 97 | . 97 . Initial . | . . . Average 30 | . 33 . Influence Increases 655 | . 390 265 Destroy 0b10 Robot/C 420 | . 240 180 Destroy 0b10 Robot/NC 15 | . 15 . Destroy Leader 76 | . 66 10 Successful Hack 5 | . 5 . Disable Machine 15 | . 15 . Destroy Structure 4 | . 4 . Lose Combat Pursuer 120 | . 45 75 Influence Decreases 627 | . 389 238 Entered New Map 1 | . . 1 Time Decay 572 | . 369 203 Lost Part 54 | . 20 34 Squads Dispatched 2 | . 2 . Investigation . | . . . Extermination . | . . . Reinforcement 2 | . 2 . Assault . | . . . Garrison . | . . . Intercept . | . . . Searches Triggered . | . . . Construction Impeded . | . . . Haulers Reinforced . | . . . Active Scanning Responses . | . . . Cargo Convoy Interrupts . | . . . Stealth | -11 -10 -10 --------- Run | Yrd Mat Sub Distress Signals 1 | . 1 . Communications Jammed . | . . . Distress Signals . | . . . Times Spotted 51 | . 26 25 Peak Tracking Total 5 | . 5 4 Tactical Retreats 4 | . 2 2 Traps | -11 -10 -10 ------- Run | Yrd Mat Sub Traps Triggered 4 | . 3 1 Indirectly . | . . . Trap Hack Attempts . | . . . Triggered . | . . . Disarmed . | . . . Reprogrammed . | . . . Reused . | . . . Traps Extracted . | . . . Installed . | . . . Triggered . | . . . Machines | -11 -10 -10 ---------- Run | Yrd Mat Sub Machines Disabled 2 | . 1 1 Max in Single Turn 1 | . 1 1 Machines Repaired . | . . . Machines Dismantled . | . . . Machines Sabotaged . | . . . Overloaded Fab Kills . | . . . Hacking | -11 -10 -10 --------- Run | Yrd Mat Sub Machines Accessed 2 | . 1 1 Terminals 1 | . 1 . Fabricators . | . . . Repair Stations . | . . . Recycling Units . | . . . Scanalyzers . | . . . Garrison Access . | . . . Total Hacks 9 | . 3 6 Successful 7 | . 1 6 Failed 2 | . 2 . Catastrophic . | . . . Database Lockouts . | . . . Manual 2 | . 2 . Terminals 3 | . 3 . Fabricators . | . . . Repair Stations . | . . . Recycling Units . | . . . Scanalyzers . | . . . Garrison Access . | . . . Terminal Hacks 6 | . . 6 Record 5 | . . 5 Proto ID Catalog 1 | . . 1 Fabricator Hacks . | . . . Repair Station Hacks . | . . . Recycling Unit Hacks . | . . . Scanalyzer . | . . . Garrison Access Hacks . | . . . Unauthorized Hacks 1 | . 1 . Terminals 1 | . 1 . Botnet 1 | . 1 . Fabricators . | . . . Repair Stations . | . . . Recycling Units . | . . . Scanalyzers . | . . . Garrison Access . | . . . Data Cores Recovered . | . . . Used . | . . . Hacking Detections . | . . . Full Trace Events . | . . . Feedback Events . | . . . Feedback Blocked . | . . . Robot Schematics Acquired . | . . . Robots Built . | . . . Authchips . | . . . Time . | . . . Total Robot Build Rating . | . . . Part Schematics Acquired . | . . . Parts Built . | . . . Authchips . | . . . Time . | . . . Total Part Build Rating . | . . . Part Studies Acquired . | . . . Parts Repaired . | . . . Time . | . . . Parts Recycled . | . . . Recycled Matter . | . . . Retrieved Matter . | . . . Retrieved Components . | . . . Parts Scanalyzed . | . . . Part Schematics Acquired . | . . . Parts Damaged . | . . . Bothacking | -11 -10 -10 ------------ Run | Yrd Mat Sub Used RIF Installer . | . . . Robots Hacked . | . . . Non-combat . | . . . Combat . | . . . Robot Hacks Applied . | . . . Relay Couplers Released . | . . . Fabnet Peak Effective % . | . . . Robots Rewired . | . . . Allies Hacked . | . . . Hacks Repelled . | . . . Allies | -11 -10 -10 -------- Run | Yrd Mat Sub Total Allies . | . . . Largest Group . | . . . Highest-Rated Group . | . . . Highest-Rated Ally . | . . . Total Orders . | . . . Ally Attacks . | . . . Total Damage . | . . . Kills . | . . . Allies Corrupted . | . . . Allies Melted . | . . . Intel | -11 -10 -10 ------- Run | Yrd Mat Sub Active Infowar (turns) 2247 | . 763 1484 Structural 2247 | . 763 1484 Robot Analysis Total . | . . . Derelict Logs Recovered 1 | . . 1 Drone Launches . | . . . Drone Recoveries . | . . . Exploration | -11 -10 -10 ------------- Run | Yrd Mat Sub Turns Passed 3341 | 114 1302 1925 Spaces Moved 2167 | 89 745 1333 Core 24 | 18 6 . Treads 207 | . 207 . Legs 198 | 71 127 . Wheels 1738 | . 405 1333 Hover . | . . . Flight . | . . . Fastest Speed 50 | 50 110 105 Average Speed 123 | 105 139 116 Slowest Speed 900 | 120 900 145 Overloaded Moves . | . . . Propulsion Burnouts . | . . . Robots Hopped . | . . . Potential Cave-ins 5 | . . 5 Cave-ins Triggered . | . . . Exploration Rate (%) 58 | 6 96 72 Regions Visited 2 Branch Regions 1 Pre-discovered Areas 1 | . . 1 Known Exits Taken . | . . . Unknown Exits Taken 2 | 1 1 . Scrap Searched 8 | . . 8 Spaces Dug 10 | . . 10 Terrain Destroyed 45 | . . 45 Melee . | . . . Projectile 10 | . . 10 AOE 35 | . . 35 Terrain Rammed . | . . . Walls Destroyed . | . . . Machines Disabled . | . . . Actions | -11 -10 -10 --------- Run | Yrd Mat Sub Total 2521 | 106 891 1524 Wait 90 | 6 29 55 Move 2165 | 88 744 1333 Hop . | . . . Pick Up 40 | 6 23 11 Fast Attach 12 | 6 6 . Attach 12 | . 5 7 Detach . | . . . Swap 35 | . 15 20 Drop 23 | . 12 11 Fire 144 | . 57 87 Melee . | . . . Ram . | . . . Kick . | . . . Crush . | . . . Escape Stasis . | . . . Rewire . | . . . Trap . | . . . Miscellaneous . | . . . Route ------- -11/Scrapyard -10/Materials (discovered 6 exits: [*Mat x3] / [*Min x2] / *Sub) -10/Subcaves (discovered 2 exits: [*Mat] / [*Scr]) History --------- Turn | Location | Event 6 | -11/Scrapyard | Discovered new exit (range 14) 115 | -11/Scrapyard | Entered Materials 328 | -10/Materials | Build established: Mutant 353 | -10/Materials | Discovered new exit (range 13) 461 | -10/Materials | Discovered new exit (range 10) 558 | -10/Materials | Discovered new exit (range 6) 637 | -10/Materials | Discovered new exit (range 5) 1112 | -10/Materials | Discovered new exit (range 15) 1278 | -10/Materials | Discovered new exit (range 10) 1417 | -10/Materials | Entered Subcaves 1418 | -10/Subcaves | Approached by a straggling Scientist 1434 | -10/Subcaves | Core integrity fell below 50% 1517 | -10/Subcaves | Shifting Twisted Machinery released Sub. Beam Cannon 1519 | -10/Subcaves | Shifting Twisted Machinery released Sub. Power Source 1526 | -10/Subcaves | Shifting Twisted Machinery released Barrage Gun 1648 | -10/Subcaves | A swath of the cavern ceiling suddenly collapsed 2167 | -10/Subcaves | Shifting Twisted Machinery released Mak. Thermal Plating 2173 | -10/Subcaves | Shifting Twisted Machinery released Sub. Shrapnel Launcher 2561 | -10/Subcaves | Visited 4L-MR0's lab 2582 | -10/Subcaves | Found Rainbow Chip 2610 | -10/Subcaves | Learned location of Zion (-7) 2610 | -10/Subcaves | Met a Zionite searching for "candidates" 2900 | -10/Subcaves | Core integrity fell below 20% 2950 | -10/Subcaves | Lost 4 parts (1p1n2w) 3098 | -10/Subcaves | Ambushed by Subdweller buried in earth 3143 | -10/Subcaves | Learned Materials terminal intel 3202 | -10/Subcaves | Discovered new exit (range 8) 3342 | -10/Subcaves | Destroyed by OL-U85(R) with Subdweller Machine Gun Last Messages --------------- 03273_ Acquired 100 matter. 03276_ Lgt. Armor Plating fries itself beyond repair. 03283_ Acquired 8 matter. 03312_ Searching scrap... 03312_ Found Sub. Laser. 03312_ Found Mak. Flight Unit. 03312_ Found 49 Matter. 03313_ Acquired 49 matter. 03314_ Acquired Mak. Flight Unit. 03315_ Searching scrap... 03315_ Found Mak. Laser. 03315_ Found Sub. Shrapnel Launcher. 03315_ Found 68 Matter. 03316_ Acquired 68 matter. 03316_ Searching scrap... 03316_ Found Flamer. 03316_ Found 35 Matter. 03317_ Acquired 15 matter. 03320_ Acquired Mak. Laser. Map ----- +----------------------------------------------------+ | ????????????????????????????????????????????? | | ????????????????????????????????????????????? | | ????????????????????????????????????????????? | | ????????????????????????????????????????????? | | ????????????????????????????????????????????? | | ????????????????????????????????????????????? | | ????????????????????????????????????????????? | | ????????????????????????????????????????????? | | ????????????????????????????????????????????? | | ????????????????????????????????????????????? | | ????????????????????????????????????????????? | | ????????????????????????????????????????????? | | ????????????????????????????????????????????? | | ????????????????????????????????????????????? | | ????????????????????????????????????????????? | | ????????????????????????????????????????????? | | ???????????????????????????????????#######??? | | ??????????????????????#######??????# #??? | | ??????????????????#### ???????# #??? | | ??????????????????# #???????# #??? | | ????????????####### # #??????## #??? | | ???????????## "## ### #??????## ##?? | | ???????????#"[# #<% ### ######## ### | | ???????????# ]# ## # # # # | | ???????????#|"# #R # ## | | ???????????#%#### @ # # # ## #### #? | | ???????????#### ###############[ #?# !## | | ??????????????## ## #?????????????#%& ### # | | ???????????????######?????????????##& ## # | | ???????????????????????????????????# #### ## | | ???????????????????????????????????# ??# ## | | ???????????????????????????????????# ### | | ???????????????????????????????????## < | | ????????????????????????????????????### | | ??????????????????????????????????????## | | ???????????????????????????????????????# | | ???????????????????????????????????????# ## | | ???????????????????????????????????????# ##? | | ???????????????????????????????????????####?? | | ????????????????????????????????????????????? | | ????????????????????????????????????????????? | | ????????????????????????????????????????????? | | ????????????????????????????????????????????? | | ????????????????????????????????????????????? | | ????????????????????????????????????????????? | | ????????????????????????????????????????????? | | ????????????????????????????????????????????? | | ????????????????????????????????????????????? | | ????????????????????????????????????????????? | | ????????????????????????????????????????????? | +----------------------------------------------------+ Best States ------------- Heat Dissipation 39 Energy Generation 10 Energy Capacity 250 Matter Stores 300 Matter Capacity 300 Sight Range 16 Terrain Scan Density 10 Armor Coverage 100 Evasion (%) 55 Recoil Reduction 2 Item Schematics ----------------- None Robot Schematics ------------------ None Fabricated ------------ Nothing Repaired ---------- Nothing Studied --------- None Alien Tech Used ----------------- None Achievements -------------- None Challenges ------------ None Game ------ Seed ActuatorBackupTurbovents Manual? 0 Play Time 00:35:59 Cumulative 274.9 hours Start 2025.10.28 @ 14:28:23 End 2025.10.28 @ 16:00:54 Sessions 1 Manual Loads 0 Difficulty Rogue Special Mode None Game No. 437 Rogue 437 Adventurer 0 Explorer 0 Win Type - Total 1 Types 1/0/0/0/0/0/0/0/0/0 Lore% 64 Gallery% 62 Achievement% 26 Wizard Run 0 Options --------- Layout 1 ASCII 0 Keyboard 0 Movement Mouse Keybinds 0 Fullscreen 2 Font 24/Smallcaps Map View 50x35 Zoom Use 0% Tactical HUD 1 Map Filters NONE Filters NONE Steam 1 RUN: 9cfce478-059a-47e1-b8d8-73ada89898e4